bitfinex-derivatives/quotes_SOLF0:USTF0_20241017
["timestamp","ask_amount","ask_price","bid_price","bid_amount"]
[1729165993949,3.3027,151.43,151.39,3.3034]
[1729165994145,3.3029,151.42,151.39,3.3034]
[1729165994857,20.76,151.45,151.36,15.86]
[1729165995055,3.3032,151.41,151.36,15.86]
[1729165995358,20.76,151.45,151.36,15.86]
[1729165996054,3.303,151.42,151.39,3.3034]
[1729165996652,3.303,151.42,151.39,3.3033]
[1729165997748,3.3028,151.43,151.4,3.3032]
[1729165997956,3.3028,151.43,151.41,3.2219772]
[1729165998151,4.9,151.45,151.38,15.86]
[1729165998349,6.5985,151.59,151.42,15.86]
[1729165998557,6.5985,151.59,151.44,15.86]
[1729165998558,17.2256,151.54,151.44,15.86]
[1729165998750,22.1256,151.54,151.44,15.86]
[1729165998958,22.1256,151.54,151.44,19.10279613]
[1729165999854,3.301,151.51,151.44,19.10279613]
[1729166000251,15.86,151.52,151.44,3.24279613]
[1729166000456,3.3014,151.49,151.45,3.3021]
[1729166000651,3.3014,151.49,151.45,6.6647218]
[1729166001355,3.3011,151.5,151.45,3.3626218]
[1729166001656,15.86,151.52,151.43,4.9]
[1729166001960,3.3014,151.49,151.46,3.3019]
[1729166002960,3.3012,151.5,151.46,3.3019]
[1729166003357,15.86,151.52,151.43,8.13283292]
[1729166003564,15.86,151.5,151.43,3.23283292]
[1729166003863,20.76,151.5,151.42,4.9]
[1729166004259,20.76,151.5,151.42,3.24658763]
[1729166004260,15.86,151.47,151.42,3.24658763]
[1729166004567,3.3021,151.46,151.42,3.3027]
[1729166004767,3.3021,151.46,151.42,6.59915892]
[1729166004963,15.86,151.47,151.42,3.29645892]
[1729166005255,15.86,151.47,151.4,4.9]
[1729166005450,15.86,151.47,151.4,8.20339466]
[1729166005652,3.3023,151.45,151.41,3.3029]
[1729166006049,15.86,151.47,151.41,3.3029]
[1729166006261,3.3024,151.45,151.41,3.3029]
[1729166007467,3.3024,151.44,151.41,3.3029]
[1729166008159,1.3567,151.48,151.4,8.20339466]
[1729166008366,15.86,151.45,151.4,11.50659466]
[1729166008556,15.86,151.45,151.4,6.60659466]
[1729166009567,3.3028,151.43,151.4,6.60659466]
[1729166010260,3.3025,151.44,151.4,3.30339466]
[1729166010467,15.86,151.45,151.4,3.30339466]
[1729166010662,15.86,151.45,151.38,4.9]
[1729166010864,3.3028,151.43,151.38,4.9]
[1729166011460,3.303,151.42,151.39,3.3034]
[1729166011664,15.86,151.43,151.36,4.9]
[1729166011866,15.86,151.41,151.33,4.1979]
[1729166012069,3.3035,151.4,151.36,3.304]
[1729166012263,15.86,151.41,151.33,4.1979]
[1729166012464,15.86,151.39,151.34,4.9]
[1729166013169,19.1636,151.39,151.35,3.3042]
[1729166014363,3.3037,151.38,151.35,3.3042]
[1729166014562,15.86,151.39,151.35,3.3044]
[1729166014957,3.3038,151.38,151.35,3.3044]
[1729166015469,15.86,151.39,151.34,4.9]
[1729166015771,3.3041,151.37,151.31,95.33163505]
[1729166016166,3.3041,151.37,151.34,3.3046]
[1729166016371,3.3041,151.37,151.34,6.63143982]
[1729166016567,3.3041,151.37,151.34,3.3046]
[1729166017169,3.3041,151.37,151.35,3.32926263]
[1729166017568,3.3041,151.37,151.34,3.3046]
[1729166017769,15.86,151.37,151.35,3.27043123]
[1729166017963,3.3043,151.36,151.33,3.3048]
[1729166018265,3.3043,151.36,151.33,6.61588439]
[1729166018464,3.3043,151.36,151.33,3.3048]
[1729166018669,19.164,151.37,151.34,3.3046]
[1729166018861,19.164,151.37,151.35,3.2502699]
[1729166023968,13.4642,151.36,151.35,3.2502699]
[1729166024165,10.16,151.36,151.31,90.43163505]
[1729166024365,10.16,151.32,151.25,10.16]
[1729166024573,10.16,151.3,151.27,3.3059]
[1729166024874,10.16,151.3,151.26,4.9]
[1729166025074,10.16,151.3,151.27,3.3061]
[1729166025376,10.16,151.3,151.26,4.9]
[1729166025865,3.3053,151.31,151.27,3.3059]
[1729166026670,3.3053,151.31,151.24,4.69929433]
[1729166026872,4.9,151.34,151.24,4.69929433]
[1729166026873,15.87,151.3,151.24,4.69929433]
[1729166027373,15.87,151.3,151.24,3.33719433]
[1729166027374,19.176,151.28,151.24,3.33719433]
[1729166027573,19.176,151.28,151.21,7.684]
[1729166027772,19.176,151.28,151.24,3.3066]
[1729166027972,19.176,151.28,151.21,11.01855107]
[1729166028371,19.176,151.28,151.24,3.3066]
[1729166028681,15.87,151.28,151.21,11.01855107]
[1729166029570,3.3063,151.27,151.23,3.3068]
[1729166029765,15.87,151.26,151.21,4.66645107]
[1729166029970,15.87,151.26,151.21,6.64185107]
[1729166029971,3.3067,151.25,151.21,6.64185107]
[1729166030174,15.87,151.26,151.21,6.64185107]
[1729166030368,1.3952,151.29,151.21,6.64185107]
[1729166030369,15.87,151.25,151.21,6.64185107]
[1729166030569,3.3069,151.24,151.21,3.33455107]
[1729166030875,3.3069,151.24,151.2,4.9]
[1729166031274,19.1767,151.25,151.21,3.3073]
[1729166031471,3.3067,151.25,151.2,8.20125535]
[1729166031870,3.3067,151.25,151.22,3.3072]
[1729166032572,3.3063,151.27,151.23,3.307]
[1729166033173,3.3064,151.26,151.23,3.307]
[1729166035875,15.87,151.28,151.2,8.20125535]
[1729166036580,3.3063,151.27,151.2,8.20125535]
[1729166036974,15.87,151.28,151.2,8.20125535]
[1729166037175,3.3065,151.26,151.22,3.3071]
[1729166037375,19.1765,151.26,151.22,3.3071]
[1729166038575,19.1765,151.26,151.2,8.20125535]
[1729166038874,19.1765,151.26,151.23,3.3069]
[1729166039083,15.87,151.26,151.2,8.20125535]
[1729166040479,19.1764,151.26,151.2,8.20125535]
[1729166040677,19.1764,151.26,151.23,3.3069]
[1729166041471,15.87,151.26,151.2,8.20125535]
[1729166041678,15.87,151.28,151.2,24.07125535]
[1729166042482,19.176,151.28,151.25,3.3065]
[1729166043185,15.87,151.26,151.2,8.20125535]
[1729166044885,15.87,151.28,151.2,3.30125535]
[1729166045182,15.87,151.28,151.21,4.9]
[1729166045385,19.176,151.28,151.24,3.3066]
[1729166047180,3.3061,151.27,151.24,3.3066]
[1729166049382,15.87,151.32,151.22,15.87]
[1729166049582,15.87,151.32,151.23,4.9]
[1729166049880,10.15,151.3,151.28,3.3058]
[1729166050284,3.3053,151.31,151.23,7.7488]
[1729166050285,10.15,151.29,151.24,10.15]
[1729166050488,10.15,151.28,151.25,4.9]
[1729166051282,10.15,151.28,151.26,3.3062]
[1729166051585,10.15,151.27,151.23,2.8488]
[1729166051786,15.87,151.28,151.25,3.3064]
[1729166054183,3.3062,151.27,151.24,3.3067]
[1729166056284,3.3062,151.27,151.22,4.9]
[1729166057588,3.3062,151.27,151.24,3.3067]
[1729166058495,19.176,151.28,151.25,3.3065]
[1729166058791,15.87,151.28,151.22,4.9]
[1729166058991,15.87,151.31,151.26,3.3062]
[1729166059184,20.77,151.31,151.26,3.3062]
[1729166059588,3.3057,151.3,151.26,3.3062]
[1729166059992,20.77,151.31,151.26,3.3062]
[1729166060195,3.3058,151.29,151.26,3.3062]
[1729166061286,3.306,151.28,151.25,3.3065]
[1729166061687,15.87,151.29,151.22,4.9]
[1729166062001,3.3062,151.27,151.22,4.9]
[1729166062499,3.3065,151.26,151.22,8.2071]
[1729166063698,3.3065,151.26,151.23,3.307]
[1729166064904,3.3068,151.25,151.21,6.65045146]
[1729166065199,15.87,151.25,151.21,3.34315146]
[1729166065403,15.87,151.25,151.19,2.815]
[1729166065599,15.87,151.25,151.19,6.1228]
[1729166066091,15.87,151.25,151.19,9.50806686]
[1729166066608,3.3072,151.23,151.19,9.50806686]
[1729166066911,15.87,151.23,151.19,3.38526686]
[1729166067106,15.87,151.23,151.16,4.9]
[1729166067406,3.3073,151.22,151.18,3.3079]
[1729166067707,3.3073,151.22,151.18,3.2886867]
[1729166067909,3.3073,151.22,151.16,4.9]
[1729166068504,3.3073,151.22,151.19,3.3078]
[1729166069302,3.3073,151.22,151.16,8.19385634]
[1729166069303,15.87,151.23,151.16,8.19385634]
[1729166069513,19.1771,151.23,151.2,3.3076]
[1729166070118,15.87,151.23,151.16,8.19385634]
[1729166071199,19.1772,151.23,151.16,8.19385634]
[1729166071904,19.1772,151.23,151.18,3.3081]
[1729166072103,19.1772,151.23,151.16,3.29385634]
[1729166072104,19.1772,151.23,151.16,8.19385634]
[1729166072306,19.1772,151.23,151.16,4.9]
[1729166072502,3.3075,151.21,151.18,3.308]
[1729166072698,3.3075,151.21,151.18,6.64078683]
[1729166072903,15.87,151.23,151.18,3.33278683]
[1729166073107,3.3073,151.22,151.19,3.3078]
[1729166073313,15.87,151.23,151.19,3.24345372]
[1729166073507,15.87,151.23,151.16,4.9]
[1729166073906,10.17,151.22,151.2,3.3076]
[1729166074107,13.4771,151.23,151.2,3.3076]
[1729166074910,4.1686,151.27,151.2,10.17]
[1729166074911,10.17,151.25,151.2,10.17]
[1729166076114,13.4767,151.25,151.22,3.3071]
[1729166076506,6.2486,151.27,151.2,10.17]
[1729166076703,10.17,151.26,151.2,10.17]
[1729166076911,10.17,151.26,151.2,15.07]
[1729166077419,10.17,151.26,151.2,4.9]
[1729166077616,13.4765,151.26,151.2,15.07]
[1729166078516,13.4765,151.26,151.22,3.307]
[1729166079315,13.4765,151.26,151.23,3.307]
[1729166080014,10.17,151.26,151.23,3.307]
[1729166080214,1.4494,151.33,151.2,15.07]
[1729166080215,10.17,151.3,151.27,3.306]
[1729166080416,10.17,151.3,151.27,6.66624328]
[1729166080718,10.17,151.3,151.27,3.306]
[1729166081120,13.4756,151.3,151.27,6.57130433]
[1729166084014,10.17,151.3,151.27,3.26530433]
[1729166084218,10.17,151.3,151.28,3.3059]
[1729166084516,10.17,151.3,151.29,3.34722753]
[1729166085617,13.4756,151.3,151.29,3.34722753]
[1729166085817,4.9,151.32,151.29,3.34722753]
[1729166086019,10.17,151.3,151.28,3.3058]
[1729166086215,10.17,151.3,151.29,3.26356338]
[1729166086927,13.4755,151.3,151.29,3.26356338]
[1729166087215,10.17,151.3,151.24,4.9]
[1729166087419,4.9,151.32,151.22,10.17]
[1729166087420,10.17,151.26,151.22,10.17]
[1729166087619,10.17,151.26,151.24,3.3067]
[1729166087818,10.17,151.26,151.24,6.64742488]
[1729166088520,10.17,151.26,151.24,3.34072488]
[1729166088821,10.17,151.26,151.23,3.307]
[1729166089525,13.4764,151.26,151.23,3.307]
[1729166090324,3.3064,151.26,151.23,3.307]
[1729166095023,3.3063,151.27,151.24,3.3067]
[1729166095223,3.3063,151.27,151.24,6.60696309]
[1729166095424,3.3063,151.27,151.24,3.30026309]
[1729166095624,10.17,151.28,151.22,10.17]
[1729166095825,13.476,151.28,151.22,10.17]
[1729166096025,13.476,151.28,151.23,10.17]
[1729166096626,13.476,151.28,151.25,3.3066]
[1729166096820,13.476,151.28,151.25,6.65945297]
[1729166097024,4.9,151.3,151.21,9.0828]
[1729166097025,3.3058,151.29,151.24,10.17]
[1729166097228,3.3058,151.29,151.26,3.3062]
[1729166097229,13.4758,151.29,151.26,3.3062]
[1729166099734,10.17,151.29,151.26,3.3062]
[1729166099931,3.3059,151.28,151.26,3.3062]
[1729166100127,10.17,151.29,151.24,13.47621666]
[1729166100338,10.17,151.29,151.25,3.3064]
[1729166100730,10.17,151.29,151.24,13.47621666]
[1729166101028,3.306,151.28,151.26,3.3063]
[1729166102834,17.88609597,151.34,151.26,10.17]
[1729166103056,17.88609597,151.34,151.25,4.9]
[1729166103057,4.9,151.33,151.28,10.17]
[1729166103227,13.4752,151.32,151.29,3.3055]
[1729166104230,3.3053,151.31,151.28,3.3058]
[1729166104537,10.17,151.32,151.27,10.17]
[1729166105134,3.3053,151.31,151.28,3.3058]
[1729166105439,10.17,151.31,151.26,10.17]
[1729166105636,10.17,151.28,151.25,4.9]
[1729166105841,13.476,151.28,151.25,3.3065]
[1729166106037,1.4237,151.32,151.24,13.47621666]
[1729166106333,13.4758,151.29,151.26,3.3063]
[1729166107448,13.4758,151.29,151.24,13.47621666]
[1729166107449,1.4237,151.32,151.25,10.17]
[1729166107639,4.9,151.32,151.27,10.17]
[1729166107836,1.3367,151.35,151.3,10.17]
[1729166107837,15.07,151.35,151.3,10.17]
[1729166108147,3.3044,151.35,151.32,3.3048]
[1729166110444,15.88,151.33,151.27,9.2572]
[1729166110642,15.88,151.33,151.27,6.3721]
[1729166110841,3.3051,151.32,151.29,3.3056]
[1729166112350,16.33782752,151.38,151.27,22.2521]
[1729166112644,4.9,151.38,151.29,15.88]
[1729166112843,20.78,151.39,151.31,15.88]
[1729166113039,15.88,151.39,151.31,20.78]
[1729166113239,4.9,151.39,151.31,20.78]
[1729166113741,3.3039,151.38,151.31,20.78]
[1729166114149,3.304,151.37,151.34,3.3045]
[1729166114637,4.9,151.39,151.34,3.3045]
[1729166114838,3.3038,151.38,151.34,6.67662832]
[1729166115551,3.3038,151.38,151.35,3.3044]
[1729166118041,3.3035,151.39,151.36,3.304]
[1729166118247,4.9,151.4,151.33,15.88]
[1729166118645,3.3032,151.41,151.38,3.3036]
[1729166118848,6.2837,151.43,151.38,6.56895472]
[1729166119045,22.1637,151.43,151.34,1.3584]
[1729166119254,15.88,151.4,151.31,20.78]
[1729166119646,3.3038,151.38,151.35,3.3043]
[1729166119847,3.3038,151.38,151.36,3.22733935]
[1729166120350,4.9,151.39,151.36,3.22733935]
[1729166120552,3.3037,151.38,151.31,20.78]
[1729166120951,3.3037,151.38,151.31,4.9]
[1729166120952,3.3043,151.36,151.31,4.9]
[1729166121150,15.88,151.38,151.29,17.2384]
[1729166121351,15.88,151.38,151.29,22.1384]
[1729166122456,3.3042,151.36,151.33,3.3047]
[1729166122647,3.3042,151.36,151.34,3.29488923]
[1729166127855,3.3044,151.35,151.31,3.3051]
[1729166128359,3.3044,151.35,151.32,3.305]
[1729166128560,3.3044,151.35,151.29,6.2584]
[1729166129065,3.3044,151.35,151.32,3.305]
[1729166132066,3.3038,151.38,151.33,10.16]
[1729166132262,16.2734838,151.46,151.29,6.2584]
[1729166132263,260.30458673,151.56,151.37,10.16]
[1729166132464,3.3022,151.45,151.41,10.16]
[1729166132662,3.3022,151.45,151.41,13.50987107]
[1729166132857,10.16,151.47,151.41,13.50987107]
[1729166133057,6.3521,151.49,151.41,13.50987107]
[1729166133260,16.5121,151.49,151.43,10.16]
[1729166133559,16.5121,151.49,151.44,10.16]
[1729166133763,11.6121,151.49,151.44,10.16]
[1729166133957,6.3521,151.49,151.46,10.16]
[1729166134370,6.3521,151.49,151.45,3.302]
[1729166134759,9.6536,151.49,151.45,3.302]
[1729166136163,1.4521,151.49,151.42,20.75]
[1729166136367,3.3015,151.49,151.45,3.3021]
[1729166139464,3.3021,151.46,151.43,3.3025]
[1729166139665,20.75,151.5,151.43,3.3025]
[1729166140269,3.3019,151.47,151.43,3.3025]
[1729166141368,3.3019,151.47,151.44,3.3024]
[1729166144570,4.9,151.5,151.42,4.9]
[1729166144764,3.3017,151.48,151.45,3.3022]
[1729166145170,3.3017,151.48,151.46,3.2785104]
[1729166145667,3.3015,151.49,151.46,3.2785104]
[1729166145874,4.9,151.5,151.42,4.9]
[1729166146773,3.3015,151.48,151.45,3.302]
[1729166147070,3.3015,151.48,151.46,3.37627778]
[1729166148872,3.3015,151.48,151.46,3.302]
[1729166149072,3.3015,151.48,151.46,6.58183158]
[1729166149274,3.3018,151.47,151.46,3.27983158]
[1729166149468,3.3018,151.47,151.42,4.9]
[1729166150871,3.3018,151.47,151.44,3.3023]
[1729166153678,15.85,151.51,151.48,3.3014]
[1729166153679,4.9,151.51,151.48,3.3014]
[1729166153878,4.9,151.51,151.47,3.33730295]
[1729166154073,4.9,151.51,151.43,15.85]
[1729166154274,3.3014,151.49,151.46,3.3018]
[1729166154479,3.3014,151.49,151.47,3.37892015]
[1729166155782,4.9,151.51,151.47,6.68062015]
[1729166155783,3.3013,151.5,151.47,6.68062015]
[1729166155975,4.9,151.51,151.47,6.68062015]
[1729166157469,3.3014,151.49,151.47,6.68062015]
[1729166158874,3.3015,151.48,151.47,3.37892015]
[1729166159074,10.14,151.48,151.41,11.5857]
[1729166159276,10.14,151.46,151.41,11.5857]
[1729166159577,13.4421,151.46,151.43,3.3025]
[1729166160074,3.3022,151.45,151.43,3.3025]
[1729166160472,10.14,151.46,151.43,3.3025]
[1729166160874,10.14,151.46,151.41,1.4457]
[1729166161076,10.14,151.46,151.42,3.3028]
[1729166161584,10.14,151.46,151.41,10.14]
[1729166161787,10.14,151.43,151.4,3.3032]
[1729166162277,10.14,151.43,151.41,3.3031]
[1729166162788,10.14,151.45,151.4,10.14]
[1729166163082,10.14,151.43,151.38,8.27529508]
[1729166163278,10.14,151.41,151.38,8.27529508]
[1729166163477,10.14,151.41,151.38,6.67889508]
[1729166163681,10.14,151.41,151.38,3.37529508]
[1729166163877,3.303,151.42,151.39,3.3034]
[1729166166883,3.3029,151.42,151.39,3.3035]
[1729166172795,10.14,151.43,151.38,3.24381153]
[1729166173093,13.4427,151.43,151.4,3.3031]
[1729166173287,1.4617,151.46,151.39,10.14]
[1729166173496,13.4424,151.45,151.41,3.3029]
[1729166173695,13.4424,151.45,151.4,10.14]
[1729166173992,13.4424,151.45,151.42,3.3028]
[1729166175101,10.14,151.48,151.44,3.3023]
[1729166175398,10.14,151.48,151.42,10.14]
[1729166175792,3.302,151.46,151.43,3.3025]
[1729166176399,3.302,151.46,151.42,10.14]
[1729166176400,3.3017,151.48,151.45,10.14]
[1729166176599,15.04,151.5,151.45,13.51937552]
[1729166176992,13.4415,151.49,151.45,6.68147552]
[1729166178007,13.4415,151.49,151.46,3.302]
[1729166179604,4.9,151.51,151.45,13.51937552]
[1729166179801,3.3012,151.5,151.47,10.14]
[1729166180501,3.3012,151.5,151.47,13.40551426]
[1729166181118,13.4412,151.5,151.47,3.26551426]
[1729166181406,13.4412,151.5,151.47,3.3016]
[1729166181616,10.14,151.5,151.47,3.225112]
[1729166181806,13.4412,151.5,151.45,10.14]
[1729166182407,13.4412,151.5,151.45,13.45066137]
[1729166183407,13.4412,151.5,151.47,3.3016]
[1729166184113,10.14,151.48,151.46,3.3018]
[1729166184313,10.14,151.47,151.45,3.31066137]
[1729166184506,10.14,151.47,151.42,9.1985]
[1729166184706,3.302,151.46,151.44,3.3024]
[1729166184904,10.14,151.47,151.44,3.3024]
[1729166185213,4.9,151.48,151.44,3.3024]
[1729166185214,15.04,151.48,151.45,3.27641195]
[1729166186112,3.3019,151.47,151.45,3.27641195]
[1729166190718,8.2017,151.48,151.45,6.57851195]
[1729166190913,10.14,151.47,151.45,6.57851195]
[1729166195620,13.4418,151.47,151.45,6.57851195]
[1729166203330,3.3018,151.47,151.45,6.57851195]
[1729166206338,10.14,151.49,151.45,3.27641195]
[1729166206625,4.9,151.5,151.39,10.14]
[1729166206626,10.14,151.46,151.39,10.14]
[1729166206832,10.14,151.44,151.39,10.14]
[1729166207430,10.14,151.44,151.42,3.3027]
[1729166208432,13.4423,151.45,151.42,3.3027]
[1729166210035,4.9,151.46,151.4,10.14]
[1729166210231,4.9,151.46,151.44,3.3024]
[1729166210232,15.04,151.46,151.44,3.3024]
[1729166211330,4.9,151.46,151.44,3.3024]
[1729166211533,8.202,151.46,151.45,3.23290963]
[1729166211732,3.302,151.46,151.45,3.23290963]
[1729166213430,13.442,151.46,151.45,3.23290963]
[1729166213630,3.3019,151.47,151.43,3.3026]
[1729166213826,3.3019,151.47,151.42,10.14]
[1729166213827,10.14,151.47,151.42,10.14]
[1729166214538,3.3021,151.46,151.43,3.3025]
[1729166216139,3.3021,151.46,151.43,13.4425]
[1729166218235,3.3018,151.47,151.44,3.3022]
[1729166218544,3.3018,151.47,151.43,10.14]
[1729166218734,3.3018,151.47,151.44,3.3024]
[1729166221732,13.4417,151.48,151.46,3.302]
[1729166221934,13.4417,151.48,151.46,6.58667265]
[1729166224541,3.3018,151.47,151.46,6.58667265]
[1729166225040,3.3023,151.45,151.43,3.3025]
[1729166225236,13.4423,151.45,151.43,3.3025]
[1729166227038,3.3024,151.44,151.42,3.3028]
[1729166227545,13.4427,151.43,151.4,3.3031]
[1729166228542,10.14,151.43,151.41,3.3029]
[1729166228939,3.3025,151.44,151.41,3.3029]
[1729166228940,13.4425,151.44,151.41,3.3029]
[1729166229543,13.4425,151.44,151.42,3.3028]
[1729166234448,13.4425,151.44,151.37,8.26748097]
[1729166234449,10.14,151.43,151.41,3.303]
[1729166237152,10.14,151.45,151.42,3.3028]
[1729166237651,10.14,151.45,151.39,10.14]
[1729166238143,13.4422,151.45,151.39,10.14]
[1729166238543,13.4422,151.45,151.42,3.3027]
[1729166239749,13.4421,151.46,151.43,3.3024]
[1729166239948,2.7538,151.5,151.42,10.14]
[1729166240249,10.14,151.47,151.42,10.14]
[1729166240455,4.9,151.48,151.39,10.14]
[1729166240456,10.14,151.44,151.39,10.14]
[1729166240647,10.14,151.44,151.4,4.9]
[1729166240844,10.14,151.44,151.4,8.27695412]
[1729166241045,3.3024,151.45,151.42,3.3027]
[1729166241252,4.9,151.48,151.4,8.27695412]
[1729166241748,10.14,151.46,151.4,18.41695412]
[1729166242060,10.14,151.47,151.42,10.14]
[1729166243050,10.14,151.47,151.45,3.302]
[1729166243251,13.4414,151.49,151.43,10.14]
[1729166243647,13.4414,151.49,151.46,3.3018]
[1729166244039,4.9,151.5,151.41,4.1557]
[1729166244040,10.14,151.47,151.41,14.2957]
[1729166244750,10.14,151.47,151.45,3.3021]
[1729166245846,10.14,151.47,151.46,3.302]
[1729166252755,10.14,151.47,151.41,4.1557]
[1729166252950,10.14,151.42,151.4,3.37695412]
[1729166253150,10.14,151.41,151.38,4.9]
[1729166253350,10.14,151.41,151.39,3.3033]
[1729166253557,10.14,151.41,151.38,8.20184914]
[1729166254557,10.14,151.41,151.4,3.3033]
[1729166255262,3.3023,151.45,151.42,3.3027]
[1729166255557,10.14,151.44,151.42,3.3027]
[1729166255749,10.14,151.44,151.39,10.14]
[1729166255953,10.14,151.44,151.43,3.3026]
[1729166256153,10.14,151.44,151.38,8.20184914]
[1729166256461,10.14,151.44,151.38,18.34184914]
[1729166256654,10.14,151.44,151.42,3.3028]
[1729166258855,10.14,151.45,151.43,3.3026]
[1729166269272,10.14,151.45,151.44,3.3024]
[1729166269476,10.14,151.46,151.4,14.2714]
[1729166269766,10.14,151.46,151.44,3.3023]
[1729166272772,10.14,151.46,151.45,3.3022]
[1729166275066,13.4416,151.48,151.45,3.3022]
[1729166278469,3.3016,151.48,151.45,3.3022]
[1729166278778,13.4416,151.48,151.45,3.3022]
[1729166281878,10.14,151.46,151.4,4.1314]
[1729166282167,10.14,151.43,151.4,9.0114]
[1729166282364,10.14,151.44,151.43,3.3026]
[1729166284978,2.7347,151.5,151.43,3.3026]
[1729166284979,13.4421,151.46,151.43,3.3026]
[1729166285278,10.14,151.46,151.41,10.14]
[1729166285478,13.4421,151.46,151.43,3.3026]
[1729166285669,10.14,151.46,151.43,3.3026]
[1729166288874,13.4422,151.46,151.43,3.3026]
[1729166289071,10.14,151.46,151.43,3.3026]
[1729166290481,3.3022,151.45,151.43,3.3026]
[1729166291078,10.14,151.46,151.43,3.3026]
[1729166291274,13.4421,151.46,151.43,3.3026]
[1729166292976,4.88,151.49,151.4,19.1514]
[1729166293181,13.4416,151.48,151.45,3.3021]
[1729166294777,10.14,151.48,151.45,3.3021]
[1729166294978,3.3018,151.47,151.45,3.3021]
[1729166295783,3.3018,151.47,151.45,3.3022]
[1729166297184,10.14,151.48,151.45,3.3022]
[1729166297384,10.14,151.48,151.43,10.14]
[1729166297787,10.14,151.48,151.44,14.60576285]
[1729166297980,10.14,151.48,151.47,3.3018]
[1729166298288,10.14,151.48,151.47,6.64967679]
[1729166298492,10.14,151.48,151.47,3.3018]
[1729166298989,3.3012,151.5,151.47,6.63150873]
[1729166299185,10.14,151.49,151.47,3.3018]
[1729166299386,10.14,151.49,151.47,6.65397105]
[1729166299595,10.14,151.49,151.48,3.3015]
[1729166299788,10.14,151.49,151.48,6.65168908]
[1729166303791,10.14,151.49,151.48,3.35018908]
[1729166303998,10.14,151.49,151.4,4.1314]
[1729166304188,10.14,151.46,151.43,4.88]
[1729166304492,10.14,151.46,151.44,3.3024]
[1729166304695,3.3019,151.47,151.44,3.3024]
[1729166304897,10.14,151.46,151.43,4.88]
[1729166305196,13.4421,151.46,151.43,8.1824]
[1729166305397,13.4421,151.46,151.43,4.88]
[1729166305794,10.14,151.46,151.44,3.3024]
[1729166309604,13.4421,151.46,151.43,3.3026]
[1729166309994,10.14,151.46,151.41,15.02]
[1729166310198,10.14,151.43,151.39,4.88]
[1729166310393,10.14,151.43,151.4,4.46587131]
[1729166310697,10.14,151.42,151.38,8.18184914]
[1729166310893,10.14,151.42,151.4,3.3032]
[1729166311100,10.14,151.42,151.4,6.67233299]
[1729166311300,10.14,151.42,151.4,3.3032]
[1729166311807,10.14,151.42,151.4,6.56528198]
[1729166315006,10.14,151.42,151.41,3.3031]
[1729166315211,10.14,151.42,151.4,3.26208198]
[1729166315413,10.14,151.42,151.38,4.88]
[1729166315613,10.14,151.42,151.39,4.46552365]
[1729166315810,10.14,151.42,151.4,3.3032]
[1729166316506,10.14,151.42,151.4,6.67795683]
[1729166318207,3.3027,151.43,151.4,6.67795683]
[1729166318412,10.14,151.42,151.4,6.67795683]
[1729166319708,3.3027,151.43,151.4,6.67795683]